[Event "Mitropa Cup Women 2024"]
[Site "Apolda"]
[Date "2024.02.21"]
[Round "7.17"]
[White "Heinemann, Josefine"]
[Black "Terbe, Julianna"]
[Result "1-0"]
[ECO "A41"]
[WhiteElo "2361"]
[BlackElo "2315"]
[Annotator "TA"]
[PlyCount "77"]
[EventDate "2024.02.15"]
[EventType "team-tourn"]
[EventCountry "GER"]
[SourceTitle "playchess.com"]
[Source "ChessBase"]
[SourceQuality "1"]
[WhiteTeam "Germany"]
[BlackTeam "Hungary"]
[WhiteTeamCountry "GER"]
[BlackTeamCountry "HUN"]
[TimeControl "40/5400+30:1800+30"]

{[%evp 9,77,0,0,0,0,-12,-14,-77,-81,-72,-60,-95,3,22,24,-18,0,-19,-12,-70,-52,-64,0,-20,0,-12,0,-29,-14,-29,-25,-37,8,20,22,0,2,6,32,0,15,0,15,0,0,0,2,8,101,108,143,101,194,184,181,136,138,144,129,135,186,220,29970,29972,29974,29973,29980,29971,29970,29966]} 1. c4 {[%emt 0:00:03]} g6 {[%emt 0:00:10]} 2. Nc3 {[%emt 0:00:09]} Bg7 {[%emt 0:00:06]} 3. Nf3 {[%emt 0:01:09]} d6 {[%emt 0:00:46]} 4. d4 {[%emt 0:02:14]} e5 {[%emt 0:00:15]} 5. h3 {[%emt 0:05:30]} exd4 {[%emt 0:07:48]} 6. Nxd4 {[%emt 0:00:06]} Nc6 {[%emt 0:00:05]} 7. e3 {[%emt 0:03:47]} Nge7 {[%emt 0:05:17]} 8. g4 {[%emt 0:08:26]} (8. Be2 $11 {remains equal.}) 8... h5 $17 {[%emt 0:06:35] [#] aiming for ...hxg4.} 9. Rg1 {[%emt 0:10:13]} hxg4 {[%emt 0:10:11]} 10. hxg4 {[%emt 0:00:21]} Nxd4 {[%emt 0:00:28]} (10... Rh4 $17) 11. exd4 $11 {[%emt 0:00:05]} d5 {[%emt 0:00:07]} 12. c5 {[%emt 0:06:25]} b6 {[%emt 0:09:59]} 13. cxb6 {[%emt 0:04:46]} axb6 {[%emt 0:00:39]} 14. Be3 {[%emt 0:01:10]} ({Better is} 14. Bg5 $11) 14... Be6 {[%emt 0:06:20]} (14... c5 $5 15. Qd2 O-O $11) 15. Qd2 {[%emt 0:05:03]} Qd7 {[%emt 0:03:22]} ({Black should try} 15... c5 $15) 16. Be2 {[%emt 0:02:36]} c6 {[%emt 0:04:45]} 17. b3 {[%emt 0:05:45]} Nc8 {[%emt 0:07:59]} 18. Na4 {[%emt 0:06:04] [#]} c5 $1 {[%emt 0:14:36]} 19. Nc3 {[%emt 0:01:37] Bb5 is the strong threat.} (19. f3 Qd8) 19... Kf8 {[%emt 0:00:26]} 20. Rd1 {[%emt 0:02:16]} cxd4 {[%emt 0:10:24]} 21. Bxd4 {[%emt 0:00:10]} Ne7 {[%emt 0:02:18]} 22. Bf3 {[%emt 0:06:15]} Bxd4 {[%emt 0:04:30]} 23. Qxd4 {[%emt 0:00:04]} Kg8 {[%emt 0:00:04]} 24. a4 {[%emt 0:07:51][%cal Od4f6]} Rc8 {[%emt 0:02:36]} 25. Kf1 {[%emt 0:01:14][%cal Og1g3,Be1f1,Bf1g2,Bg2h1][%mdl 32]} (25. Ke2 {is more complex.} Rh3 26. Rh1 Nc6 27. Qf6) 25... Qc6 {[%emt 0:02:00]} 26. Nxd5 {[%emt 0:04:33]} (26. Nb5 {is interesting.} Qc2 27. Qe3 Rh2 28. Nd4) 26... Nxd5 {[%emt 0:00:10]} 27. Bxd5 {[%emt 0:00:05]} Bxd5 {[%emt 0:00:13]} 28. Qxd5 {[%emt 0:00:03]} Qc3 {[%emt 0:01:23]} (28... Rh3 $1 $11 {keeps the balance.}) 29. Rg3 $16 {[%emt 0:01:33]} Qc2 {[%emt 0:00:38]} 30. Kg2 {[%emt 0:02:01] Prevents Rh1} Re8 {[%emt 0:00:20]} (30... Rh4 $16) 31. Rf3 $40 {[%emt 0:01:11][%mdl 128] White goes for the king.} Rf8 {[%emt 0:00:50]} 32. Rh1 {[%emt 0:02:32]} Rxh1 {[%emt 0:00:05]} 33. Kxh1 $16 {[%emt 0:00:03][%mdl 4096] Endgame. KQR-KQR} Qc8 {[%emt 0:00:19]} 34. Kg2 {[%emt 0:03:02] White is more active.} Qxg4+ {[%emt 0:01:05]} (34... Kg7 $16) 35. Rg3 $18 {[%emt 0:00:04]} Qh4 {[%emt 0:00:05]} (35... Qe6 $18 36. Qxe6 fxe6 37. Rxg6+ Kf7) 36. Rxg6+ {[%emt 0:00:16] White mates.} Kh7 {[%emt 0:00:03]} 37. Rg3 {[%emt 0:00:16]} Qf6 {[%emt 0:00:33]} 38. Qh5+ {[%emt 0:00:21]} Qh6 {[%emt 0:00:05]} 39. Qf5+ {[%emt 0:00:04] Weighted Error Value: White=0.19 (very precise) /Black=0.44.  Mistake:       	White=2     	Black=6      Inaccurate:     	White=4     	Black=3      OK:         	White=4     	Black=6      Best:        	White=3     	---} 1-0

[Event "Mitropa Cup Women 2024"]
[Site "Apolda"]
[Date "2024.02.21"]
[Round "7.18"]
[White "Demeter, Dorina"]
[Black "Schneider, Jana"]
[Result "1-0"]
[ECO "E14"]
[WhiteElo "2271"]
[BlackElo "2331"]
[Annotator "TA"]
[PlyCount "89"]
[EventDate "2024.02.15"]
[EventType "team-tourn"]
[EventCountry "GER"]
[SourceTitle "playchess.com"]
[Source "ChessBase"]
[SourceQuality "1"]
[WhiteTeam "Hungary"]
[BlackTeam "Germany"]
[WhiteTeamCountry "HUN"]
[BlackTeamCountry "GER"]
[TimeControl "40/5400+30:1800+30"]

{[%evp 19,89,22,18,30,46,45,37,35,33,44,89,81,115,107,77,66,92,98,92,82,143,148,1087,1092,1070,1068,977,808,756,675,1247,1196,1230,1193,1113,886,803,525,738,586,1262,450,1520,1511,1373,1336,974,962,969,956,1491,1051,29980,29980,29982,29981,29987,29988,29988,29989,29989,5057,29990,4608,4132,4132,4132,3063,1977,1293,29988,29988]} 1. Nf3 {[%emt 0:00:04]} d5 {[%emt 0:00:08]} 2. e3 {[%emt 0:00:25]} Nf6 {[%emt 0:00:12]} 3. c4 {[%emt 0:00:22]} e6 {[%emt 0:00:17]} 4. Nc3 {[%emt 0:00:18]} Nbd7 {[%emt 0:00:33]} 5. b3 {[%emt 0:00:14]} b6 {[%emt 0:01:45]} 6. cxd5 {[%emt 0:01:42]} exd5 {[%emt 0:00:20]} 7. Bb2 {[%emt 0:01:16]} Bb7 {[%emt 0:00:36]} 8. d4 {[%emt 0:01:40]} Be7 {[%emt 0:05:15]} 9. Bd3 {[%emt 0:01:42]} O-O {[%emt 0:01:08]} 10. O-O {[%emt 0:05:09]} Re8 {[%emt 0:01:24]} 11. Ne5 {[%emt 0:09:49]} Bf8 {[%emt 0:09:03]} 12. f4 {[%emt 0:02:47]} c5 {[%emt 0:08:20]} 13. Qf3 {[%emt 0:05:40] Weiß steht etwas besser.} cxd4 {[%emt 0:05:58]} 14. exd4 {[%emt 0:00:27]} Nb8 {[%emt 0:03:53]} 15. Rac1 {[%emt 0:11:40]} a6 {[%emt 0:04:34] Es drohte Nb5} 16. Qh3 {[%emt 0:04:37]} b5 {[%emt 0:10:01]} 17. Rfe1 {[%emt 0:16:56] Weiß steht deutlich aktiver. Die schwarzen Türme stehen passiv.} Qb6 {[%emt 0:01:40]} 18. Kh1 {[%emt 0:00:59]} h6 {[%emt 0:05:43]} 19. Re2 {[%emt 0:15:01]} Nc6 {[%emt 0:01:42] [#]} ({Besser ist} 19... Re7) 20. Nxd5 $1 $40 {[%emt 0:02:22][%mdl 128] Schwarz ist in Schwierigkeiten.} Nxd5 {[%emt 0:01:21][%mdl 8192] [#] Das Aus für Schwarz.} (20... Qd8 $16) 21. Qf5 $1 $18 {[%emt 0:00:23]} Nf6 {[%emt 0:02:30] Lässt Qh7+ nicht zu} 22. Nd7 {[%emt 0:00:20]} g6 {[%emt 0:01:51]} 23. Qxf6 {[%emt 0:01:21]} Rxe2 {[%emt 0:02:26]} 24. Nxb6 {[%emt 0:02:03][%cal Bd7b6,Bb6a8,Ba8c7][%mdl 32]} Rxb2 {[%emt 0:00:44]} 25. Bxg6 {[%emt 0:02:58]} fxg6 {[%emt 0:03:39]} 26. Qxg6+ {[%emt 0:00:27]} (26. Rxc6 $2 Rb1+) 26... Bg7 {[%emt 0:00:06]} 27. Nxa8 {[%emt 0:04:09][%cal Oc1e1] Und jetzt Re1! wäre schön.} ({Schlechter ist} 27. Rxc6 Bxc6 28. Nxa8 (28. Qe6+ $2 Kh8 $19) 28... Bxa8 $11) 27... Nxd4 {[%emt 0:02:03] [#]} 28. Re1 $1 {[%emt 0:03:02]} Bc6 {[%emt 0:02:16] Gegen Re8+ gerichtet.} (28... Bxg2+ 29. Qxg2) 29. Nc7 {[%emt 0:01:30]} Rxa2 {[%emt 0:05:35]} 30. b4 {[%emt 0:03:15]} (30. Nd5 $142 Kh8 31. Qf7) 30... Kh8 {[%emt 0:05:31] [#]} (30... Rxg2 $2 {ist das falsche Schlagen.} 31. Re8+ Bxe8 32. Qxe8+ (32. Qxg2 Bc6 $18) 32... Kh7 33. Kxg2) (30... Bxg2+ $142 31. Qxg2 Rxg2 32. Kxg2 (32. Re8+ Kf7 $18) 32... Nc2) 31. Re8+ $1 {[%emt 0:01:47]} Bxe8 {[%emt 0:00:07]} 32. Qxe8+ {[%emt 0:00:04]} Kh7 {[%emt 0:00:06]} 33. Qe4+ {[%emt 0:00:09]} Kh8 {[%emt 0:00:09]} 34. h4 {[%emt 0:00:12] Qe8+ wäre nun fies.} Rb2 {[%emt 0:06:20]} 35. Ne8 {[%emt 0:00:50] Weiss droht Nxg7 und Matt.} Ne2 {[%emt 0:02:40]} 36. Qg6 {[%emt 0:00:22][%csl Ge8,LRa6,LRg7][%cal Rg6g7]} Bd4 {[%emt 0:00:40]} 37. Nd6 {[%emt 0:01:31][%cal Rd6f7]} Bg7 {[%emt 0:01:30]} 38. Nf7+ {[%emt 0:00:23]} Kg8 {[%emt 0:00:02]} 39. Nxh6+ {[%emt 0:00:10]} Kh8 {[%emt 0:00:03]} 40. Nf7+ {[%emt 0:00:49]} Kg8 {[%emt 0:00:02]} 41. h5 {[%emt 0:31:21]} (41. Ng5 $142 Ng3+ 42. Kh2 Re2 43. Qf7+ (43. Kxg3 Re7 $18) 43... Kh8 44. Kxg3 Re3+ 45. Kf2 Re6 46. Nxe6) 41... Nxf4 {[%emt 0:31:02]} 42. Nh6+ {[%emt 0:00:00]} Kh8 {[%emt 0:00:00]} 43. Qe8+ {[%emt 0:00:00]} Kh7 {[%emt 0:00:00]} 44. Ng4 {[%emt 0:00:00]} Ne2 {[%emt 0:00:00] [#]} 45. Nf6+ $1 {[%emt 0:00:00][%mdl 512] Gewichteter Fehlerwert: Weiß=0.86/Schwarz=0.25 (präzise) .  Verlustzug:     	---       	Schwarz=1     Fehler:       	---       	Schwarz=2     Ungenau:       	---       	Schwarz=4     OK:         	Weiß=4     	Schwarz=4     Bester:       	---       	Schwarz=1     Stark:        	Weiß=1     	---} 1-0

[Event "Mitropa Cup Women 2024"]
[Site "Apolda"]
[Date "2024.02.21"]
[Round "7.19"]
[White "Schulze, Lara"]
[Black "Terbe, Zsuzsanna"]
[Result "1-0"]
[ECO "C55"]
[WhiteElo "2285"]
[BlackElo "2170"]
[Annotator "TA"]
[PlyCount "67"]
[EventDate "2024.02.15"]
[EventType "team-tourn"]
[EventCountry "GER"]
[SourceTitle "playchess.com"]
[Source "ChessBase"]
[SourceQuality "1"]
[WhiteTeam "Germany"]
[BlackTeam "Hungary"]
[WhiteTeamCountry "GER"]
[BlackTeamCountry "HUN"]
[TimeControl "40/5400+30:1800+30"]

{[%evp 10,67,40,40,47,45,38,22,54,50,52,44,71,85,79,93,122,133,126,117,116,89,88,85,86,85,89,68,89,85,83,75,74,56,188,137,147,173,228,83,88,83,102,97,97,95,83,68,107,101,161,166,341,159,153,150,361,365,600,600]} 1. e4 {[%emt 0:00:02]} e5 {[%emt 0:00:07]} 2. Nf3 {[%emt 0:00:08]} Nc6 {[%emt 0:00:09]} 3. Bc4 {[%emt 0:00:05]} Nf6 {[%emt 0:00:14]} 4. d3 {[%emt 0:00:07]} h6 {[%emt 0:00:09]} 5. c3 {[%emt 0:01:15]} d6 {[%emt 0:00:17]} 6. O-O {[%emt 0:00:05]} g5 {[%emt 0:01:00][%cal Bg7g5,Bg5g4,Bg4g3,Bg3h2][%mdl 32]} 7. Nbd2 {[%emt 0:03:36]} Bg7 {[%emt 0:03:46]} 8. Bb3 {[%emt 0:00:17]} g4 {[%emt 0:07:43] The position is equal.} 9. Ne1 {[%emt 0:04:57]} h5 {[%emt 0:06:01]} 10. f4 {[%emt 0:12:29]} exf4 {[%emt 0:09:07]} 11. Rxf4 {[%emt 0:02:50]} Bh6 {[%emt 0:02:58]} 12. Rf1 {[%emt 0:02:07]} g3 {[%emt 0:13:11]} 13. Qf3 {[%emt 0:20:01]} (13. hxg3 Be3+ 14. Kh1 Ng4 15. Bxf7+ Ke7 $11) 13... gxh2+ {[%emt 0:02:13]} 14. Kh1 $1 {[%emt 0:00:44]} Bg7 {[%emt 0:16:22]} 15. Nc4 {[%emt 0:13:53][%cal Oc1g5][%mdl 1024] White has strong compensation.} (15. Kxh2 Nd4 16. Bxf7+ (16. cxd4 $2 Ng4+ 17. Kh3 Ne5+ 18. Kh2 Qh4+ 19. Kg1 Nxf3+ $19) 16... Kf8 $19) 15... Bg4 {[%emt 0:01:28]} 16. Qf2 $40 {[%emt 0:01:12][%cal Oc1g5][%mdl 128] [#] aiming for Bg5! Black is in trouble.} Be6 {[%emt 0:02:40]} 17. Ne3 {[%emt 0:03:00]} Qd7 {[%emt 0:03:30]} (17... Ng4 $2 18. Nxg4 Bxb3 19. axb3 $18 (19. Nxh2 Be6 $11)) 18. Nf5 {[%emt 0:03:56]} (18. Kxh2 O-O-O 19. Qh4 Ng4+ 20. Kg1 Na5 $17) 18... Bxf5 {[%emt 0:01:11]} 19. Qxf5 {[%emt 0:00:35]} Qxf5 {[%emt 0:02:39]} 20. Rxf5 {[%emt 0:00:20][%cal Oc1g5]} Ne5 {[%emt 0:08:58]} 21. Bg5 {[%emt 0:03:25]} Neg4 {[%emt 0:00:35]} (21... Nfg4 $14) 22. Bh4 {[%emt 0:07:53] A strong pair of Bishops.} (22. Nc2 $18) 22... Rh6 {[%emt 0:03:15]} 23. Nf3 {[%emt 0:03:21][%cal Of3g5]} Ne3 {[%emt 0:01:18]} (23... O-O-O $142 24. Re1 (24. Bxf7 Rf8 $18) 24... Rf8) 24. Rg5 {[%emt 0:02:50]} (24. Rf4 $18) 24... Kf8 $16 {[%emt 0:02:03]} 25. Nd4 {[%emt 0:08:04][%cal Od4f5] Nf5! would now be deadly.} (25. Kxh2 $6 d5 $11) 25... Nfg4 {[%emt 0:04:32] [#] Threatens to win with ...Bf6.} 26. Nf5 {[%emt 0:00:49] The board is on fire.} Nxf5 {[%emt 0:03:18]} 27. Rxf5 {[%emt 0:00:02]} f6 {[%emt 0:02:00]} 28. Bd1 {[%emt 0:01:34] White has more active pieces.} Ne3 {[%emt 0:03:09]} 29. Rxh5 {[%emt 0:03:53]} Rg6 {[%emt 0:00:28]} (29... Kf7 $16 {keeps fighting.}) 30. Bf3 $18 {[%emt 0:00:25]} ({But not} 30. Kxh2 $6 Nxg2 (30... Rxg2+ 31. Kh1 $11) 31. Bg3 Ne3 $14) 30... Ke7 $2 {[%emt 0:00:36]} (30... c6 {might work better.} 31. Kxh2 Kf7) 31. Kxh2 {[%emt 0:00:38]} (31. Re1 $18 {has better winning chances.} Ng4 32. e5 dxe5 33. Re4 (33. Bxb7 Rb8 $14) (33. d4 Kf8 $16)) 31... Rg8 {[%emt 0:00:25]} 32. Re1 {[%emt 0:00:30]} Bh6 {[%emt 0:00:07]} (32... Ng4+ $16 {was necessary.} 33. Bxg4 Rxg4) 33. g3 {[%emt 0:00:39]} Rh8 $2 {[%emt 0:00:59]} (33... b6 34. e5 (34. Rxh6 Rxh6 35. Rxe3 Kf8 $18) 34... Kf7 35. Rxh6 (35. exf6 Re8 $18) (35. Bxf6 Rxg3 36. Rxe3 Bxe3 $18) 35... Rxh6 36. Rxe3 Re8 37. e6+ (37. Bd5+ Kf8 $18) 37... Ke7) 34. Rxe3 {[%emt 0:00:38] Weighted Error Value: White=0.25 (precise) /Black=0.40.  Loses game:     	---       	Black=1      Missed win:     	White=1     	---        Mistake:       	White=2     	Black=5      Inaccurate:     	---       	Black=4      OK:         	White=10    	Black=8      Best:        	White=2     	Black=3      Strong:       	White=1     	---} 1-0

[Event "Mitropa Cup Women 2024"]
[Site "Apolda"]
[Date "2024.02.21"]
[Round "7.20"]
[White "Karacsonyi, Kata"]
[Black "Dolzhykova, Kateryna"]
[Result "0-1"]
[ECO "B33"]
[WhiteElo "2087"]
[BlackElo "2227"]
[Annotator "RC"]
[PlyCount "80"]
[EventDate "2024.02.15"]
[EventType "team-tourn"]
[EventCountry "GER"]
[SourceTitle "playchess.com"]
[Source "ChessBase"]
[SourceQuality "1"]
[WhiteTeam "Hungary"]
[BlackTeam "Germany"]
[WhiteTeamCountry "HUN"]
[BlackTeamCountry "GER"]
[TimeControl "40/5400+30:1800+30"]

1. e4 {[%emt 0:00:03]} c5 {[%emt 0:00:04]} 2. Nf3 {[%emt 0:00:09]} Nc6 {[%emt 0:00:06]} 3. d4 {[%emt 0:00:10]} cxd4 {[%emt 0:00:06]} 4. Nxd4 {[%emt 0:00:06]} Nf6 {[%emt 0:00:04]} 5. Nc3 {[%emt 0:00:13]} h5 {[%emt 0:00:06]} 6. Be2 {[%emt 0:07:58]} g6 {[%emt 0:00:14]} 7. Be3 {[%emt 0:03:52]} Bg7 {[%emt 0:00:11]} 8. f3 {[%emt 0:05:38]} O-O {[%emt 0:01:30]} 9. Qd2 {[%emt 0:02:07]} d5 {[%emt 0:01:01]} 10. Nxc6 {[%emt 0:09:16]} bxc6 {[%emt 0:00:06]} 11. O-O-O {[%emt 0:00:44]} Qa5 {[%emt 0:07:44]} 12. Kb1 {[%emt 0:07:11]} Rb8 {[%emt 0:03:36]} 13. e5 {[%emt 0:08:14]} Nd7 {[%emt 0:06:16]} 14. f4 {[%emt 0:05:36]} Nb6 {[%emt 0:02:49]} 15. Ne4 {[%emt 0:06:21]} Qxd2 {[%emt 0:03:55]} 16. Nxd2 {[%emt 0:00:24]} f6 {[%emt 0:00:48]} 17. Bd4 {[%emt 0:05:58]} fxe5 {[%emt 0:08:24]} 18. fxe5 {[%emt 0:05:24]} Nd7 {[%emt 0:11:14]} 19. Bxa7 {[%emt 0:03:31]} Rb7 {[%emt 0:00:13]} 20. Be3 {[%emt 0:00:20]} Nxe5 {[%emt 0:00:40]} 21. Nb3 {[%emt 0:07:28]} Nc4 {[%emt 0:01:58]} 22. Bd4 {[%emt 0:02:38]} e5 {[%emt 0:03:41]} 23. Bc5 {[%emt 0:01:04]} Re8 {[%emt 0:00:31]} 24. a4 {[%emt 0:01:47]} Bg4 {[%emt 0:07:27]} 25. Bxg4 {[%emt 0:02:44]} hxg4 {[%emt 0:00:05]} 26. h3 {[%emt 0:04:04]} e4 {[%emt 0:03:59]} 27. Bd4 {[%emt 0:01:11]} Bxd4 {[%emt 0:02:58]} 28. Rxd4 {[%emt 0:00:06]} e3 {[%emt 0:03:13]} 29. Rdd1 {[%emt 0:00:56]} e2 {[%emt 0:07:23]} 30. Rde1 {[%emt 0:00:05]} g3 {[%emt 0:00:03]} 31. Kc1 {[%emt 0:01:58]} Rb4 {[%emt 0:02:55]} 32. a5 {[%emt 0:07:03]} Ra4 {[%emt 0:00:30]} 33. Kb1 {[%emt 0:00:15]} g5 {[%emt 0:02:59]} 34. Rhg1 {[%emt 0:01:50]} d4 {[%emt 0:03:20]} 35. a6 {[%emt 0:00:47]} Re5 {[%emt 0:00:52]} 36. a7 {[%emt 0:00:40]} c5 {[%emt 0:00:32]} 37. c3 {[%emt 0:00:35]} d3 {[%emt 0:00:26]} 38. Kc1 {[%emt 0:00:23]} Rxa7 {[%emt 0:00:21]} 39. Rh1 {[%emt 0:00:29]} Ra2 {[%emt 0:00:17]} 40. h4 {[%emt 0:00:28]} Rxb2 {[%emt 0:00:59]} 0-1

[Event "Mitropa Cup Women 2024"]
[Site "Apolda"]
[Date "2024.02.22"]
[Round "8.1"]
[White "Terbe, Julianna"]
[Black "Hakimifard, Ghazal"]
[Result "0-1"]
[ECO "A30"]
[WhiteElo "2315"]
[BlackElo "2243"]
[Annotator "TA"]
[PlyCount "86"]
[EventDate "2024.02.15"]
[EventType "team-tourn"]
[EventCountry "GER"]
[SourceTitle "playchess.com"]
[Source "ChessBase"]
[SourceQuality "1"]
[WhiteTeam "Hungary"]
[BlackTeam "Switzerland"]
[WhiteTeamCountry "HUN"]
[BlackTeamCountry "SUI"]
[TimeControl "40/5400+30:1800+30"]

{[%evp 19,86,54,59,61,57,60,59,60,64,34,41,41,47,28,37,43,39,39,45,1,0,-10,0,0,0,0,-10,0,0,0,6,-34,-27,-104,-49,-131,-113,-186,-199,-187,-176,-306,-303,-354,-179,-177,-180,-196,-155,-191,-177,-328,-272,-249,-200,-322,-330,-434,-430,-434,-412,-29964,-29964,-29981,-29982,-29993,-29994,-29994,-29995]} 1. Nf3 {[%emt 0:00:03]} Nf6 {[%emt 0:00:06]} 2. c4 {[%emt 0:00:05]} e6 {[%emt 0:00:10]} 3. g3 {[%emt 0:00:05]} b6 {[%emt 0:00:08]} 4. Bg2 {[%emt 0:00:05]} Bb7 {[%emt 0:00:08]} 5. O-O {[%emt 0:00:12]} Be7 {[%emt 0:00:35]} 6. Nc3 {[%emt 0:00:10]} O-O {[%emt 0:01:54]} 7. Re1 {[%emt 0:00:09]} c5 {[%emt 0:00:15]} 8. e4 {[%emt 0:00:46]} d6 {[%emt 0:01:02]} 9. d4 {[%emt 0:00:27]} cxd4 {[%emt 0:00:14]} 10. Nxd4 {[%emt 0:00:06]} Qc8 {[%emt 0:02:38]} 11. Qe2 {[%emt 0:06:49]} Nc6 {[%emt 0:03:55]} 12. Nc2 {[%emt 0:01:36]} a6 {[%emt 0:06:04]} 13. b3 {[%emt 0:05:00] White is slightly better.} Qc7 {[%emt 0:00:47]} 14. Be3 {[%emt 0:02:49]} Rfe8 {[%emt 0:02:09]} 15. Rac1 {[%emt 0:00:25]} Rac8 {[%emt 0:06:29]} 16. h3 {[%emt 0:00:52]} Nd7 {[%emt 0:04:19]} 17. f4 {[%emt 0:09:47][%cal Bf2f4,Bf4f5][%mdl 32]} Bf6 {[%emt 0:02:40]} 18. Qd2 {[%emt 0:03:33]} Red8 {[%emt 0:05:28]} 19. g4 {[%emt 0:09:55]} h6 {[%emt 0:06:32]} 20. Rf1 {[%emt 0:10:15]} Ne7 {[%emt 0:11:27][%cal Ob6b5]} 21. Nd4 {[%emt 0:05:46]} Ng6 {[%emt 0:06:04]} 22. f5 {[%emt 0:11:35]} Ngf8 {[%emt 0:00:44]} 23. Nde2 {[%emt 0:03:40]} Be5 {[%emt 0:02:33]} 24. h4 {[%emt 0:07:15]} Nf6 {[%emt 0:03:49]} 25. Bf3 {[%emt 0:00:31]} exf5 {[%emt 0:01:24]} 26. Nd5 {[%emt 0:03:20]} (26. exf5 $11 {keeps the balance.} Bxf3 27. Rxf3) 26... Nxd5 {[%emt 0:01:12] Black continues to play with concentration.} ({Black should try} 26... Bxd5 $17 27. cxd5 Qe7 28. gxf5 Ng4) 27. cxd5 {[%emt 0:00:14]} (27. exd5 $15 fxg4 28. Bxg4) 27... Qe7 $17 {[%emt 0:00:13]} 28. Rxc8 {[%emt 0:04:33]} (28. gxf5 $17 {was worth a try.} Qxh4 29. Nf4) 28... Rxc8 $19 {[%emt 0:03:36]} 29. gxf5 {[%emt 0:00:07]} Qxh4 $40 {[%emt 0:00:05][%mdl 128] Black has strong attack.} 30. Rf2 {[%emt 0:00:06] Repels Qh2+} (30. Nd4 $142) 30... Nd7 {[%emt 0:03:41]} 31. Rg2 {[%emt 0:02:06]} Kh7 {[%emt 0:00:53]} (31... Rc2 $142 32. Rxg7+ Bxg7 (32... Kxg7 33. Qxc2 Qh2+ 34. Kf1 $11) 33. Qxc2 Qh3) 32. Bf2 {[%emt 0:05:40]} Qe7 {[%emt 0:02:04]} 33. Nf4 {[%emt 0:00:59]} Rc3 {[%emt 0:02:34]} 34. Nd3 {[%emt 0:01:35] [#] Black must now prevent Nxe5.} Bf6 {[%emt 0:02:15]} 35. Be3 $2 {[%emt 0:00:14] [#]} (35. Bh4 Rc7 36. Bf2) 35... Ne5 $1 {[%emt 0:03:36]} 36. Nxe5 {[%emt 0:00:42]} Bxe5 {[%emt 0:01:51]} 37. Qf2 {[%emt 0:04:40]} (37. Rg4 $142) 37... Qf6 {[%emt 0:04:00][%cal Oc3e3] Threatens to win with ...Rxe3!} 38. Kh1 {[%emt 0:00:29] [#]} Bxd5 $1 {[%emt 0:02:37][%mdl 512]} 39. exd5 {[%emt 0:02:06] [#] Rg4 would now be deadly.} Rxe3 $1 {[%emt 0:00:12]} ({And not} 39... Qxf5 40. Rg4 Qb1+ (40... Rc2 $2 41. Qxc2 Qxc2 42. Be4+ $18) 41. Kg2 $11) 40. Rxg7+ {[%emt 0:00:33]} ({Stronger than} 40. Qxe3 Qh4+ 41. Kg1 Bd4 $19) (40. Rg4 $19 Rc3 41. Bg2) 40... Qxg7 {[%emt 0:01:08] Black mates.} 41. Qxe3 {[%emt 0:30:08]} Qg3 {[%emt 0:30:15][%csl Ge5][%cal Rg3h2]} 42. Qe2 {[%emt 0:00:00]} Qh3+ {[%emt 0:00:00]} 43. Kg1 {[%emt 0:00:00]} Bd4+ {[%emt 0:00:00] Weighted Error Value: White=0.48/Black=0.17 (very precise) .  Mistake:       	White=7     	Black=2      Inaccurate:     	White=4     	---        OK:         	White=8     	Black=9      Best:        	---       	Black=4      Strong:       	---       	Black=1      Brilliant:      	---       	Black=1} (43... Qxf5 $2 {too greedy.} 44. Be4 $18) 0-1